fUST/lending_fUST_20250511
["ID","MTS","AMOUNT","RATE_DAILY","PERIOD"]
[360569631,1746892926772,-254.44316651,8.012e-05,2]
[360569632,1746892927414,-245.55683349,8.012e-05,2]
[360569633,1746892927476,-8.88633302,8.012e-05,2]
[360569635,1746892982454,300.0,8.01e-05,2]
[360569648,1746893080374,479.10579408,8.01e-05,2]
[360569649,1746893080408,318.91924292,8.01e-05,2]
[360569650,1746893081548,500.0,8.01e-05,2]
[360569651,1746893081593,604.51613265,8.01e-05,2]
[360569652,1746893081628,500.0,8.01e-05,2]
[360569653,1746893081694,500.0,8.01e-05,2]
[360569654,1746893081753,500.0,8.01e-05,2]
[360569655,1746893081798,500.0,8.01e-05,2]
[360569656,1746893081841,500.0,8.01e-05,2]
[360569657,1746893081897,500.0,8.01e-05,2]
[360569658,1746893081940,500.0,8.01e-05,2]
[360569659,1746893081975,500.0,8.01e-05,2]
[360569660,1746893082022,500.0,8.01e-05,2]
[360569661,1746893082073,213.75649505,8.01e-05,2]
[360569662,1746893082114,500.0,8.01e-05,2]
[360569663,1746893082177,500.0,8.01e-05,2]
[360569665,1746893089170,392.13649333,8.01e-05,2]
[360569669,1746893109250,500.0,8.01e-05,2]
[360569674,1746893225487,500.0,8.01e-05,2]
[360569678,1746893235108,1152.7899095,7.273e-05,2]
[360569683,1746893241412,545.85491872,7.782e-05,2]
[360569771,1746893432812,-500.0,8.014e-05,2]
[360569773,1746893432822,-187.12491154,8.014e-05,2]
[360569775,1746893432831,-223.24347005,8.017e-05,2]
[360569777,1746893432840,-335.37405586,8.017e-05,2]
[360569779,1746893432849,-1200.0,8.018e-05,2]
[360569781,1746893432858,-300.0,8.018e-05,2]
[360569783,1746893432867,-324516.95724948,8.019e-05,2]
[360569785,1746893432877,-249.95650286,8.206e-05,2]
[360569787,1746893432886,-6022.86371085,8.206e-05,2]
[360569789,1746893432895,-720.07155912,8.207e-05,2]
[360569791,1746893432904,-152.0,8.208e-05,2]
[360569793,1746893432914,-151.0,8.219e-05,2]
[360569795,1746893432923,-151.0,8.219e-05,2]
[360569797,1746893432933,-400.0,8.219e-05,2]
[360569799,1746893432942,-219.07690044,8.219e-05,2]
[360569801,1746893432951,-400.0,8.219e-05,2]
[360569803,1746893432961,-400.0,8.219e-05,2]
[360569805,1746893432971,-400.0,8.219e-05,2]
[360569807,1746893432980,-400.0,8.219e-05,2]
[360569809,1746893432990,-400.0,8.219e-05,2]
[360569811,1746893433000,-400.0,8.219e-05,2]
[360569813,1746893433009,-400.0,8.219e-05,2]
[360569815,1746893433018,-400.0,8.219e-05,2]
[360569817,1746893433028,-400.0,8.219e-05,2]
[360569819,1746893433038,-400.0,8.219e-05,2]
[360569821,1746893433047,-1202.25,8.219e-05,2]
[360569823,1746893433057,-400.0,8.219e-05,2]
[360569825,1746893433066,-400.0,8.219e-05,2]
[360569827,1746893433075,-400.0,8.219e-05,2]
[360569829,1746893433085,-400.0,8.219e-05,2]
[360569831,1746893433095,-400.0,8.219e-05,2]
[360569833,1746893433105,-400.0,8.219e-05,2]
[360569835,1746893433115,-400.0,8.219e-05,2]
[360569837,1746893433124,-400.0,8.219e-05,2]
[360569839,1746893433134,-455.55,8.219e-05,2]
[360569841,1746893433143,-405.28,8.219e-05,2]
[360569843,1746893433152,-400.0,8.219e-05,2]
[360569845,1746893433162,-449.22608804,8.219e-05,2]
[360569847,1746893433171,-400.0,8.219e-05,2]
[360569849,1746893433181,-167.2767449,8.219e-05,2]
[360569851,1746893433190,-400.0,8.219e-05,2]
[360569852,1746893433200,-400.0,8.219e-05,2]
[360569854,1746893433209,-1035.5,8.219e-05,2]
[360569856,1746893433218,-400.0,8.219e-05,2]
[360569858,1746893433228,-400.0,8.219e-05,2]
[360569859,1746893433239,-400.0,8.219e-05,2]
[360569860,1746893433248,-400.0,8.219e-05,2]
[360569861,1746893433257,-400.0,8.219e-05,2]
[360569862,1746893433267,-221.01772639,8.219e-05,2]
[360569863,1746893433277,-400.0,8.219e-05,2]
[360569864,1746893433286,-224.94460215,8.219e-05,2]
[360569865,1746893433295,-400.0,8.219e-05,2]
[360569866,1746893433305,-400.0,8.219e-05,2]
[360569867,1746893433314,-400.0,8.219e-05,2]
[360569868,1746893433323,-289.61118822,8.219e-05,2]
[360569869,1746893433332,-400.0,8.219e-05,2]
[360569870,1746893433346,-1289.77,8.219e-05,2]
[360569871,1746893433356,-400.0,8.219e-05,2]
[360569872,1746893433366,-400.0,8.219e-05,2]
[360569873,1746893433376,-400.0,8.219e-05,2]
[360569874,1746893433385,-400.0,8.219e-05,2]
[360569875,1746893433394,-400.0,8.219e-05,2]
[360569876,1746893433404,-481.56496265,8.219e-05,2]
[360569877,1746893433415,-400.0,8.219e-05,2]
[360569878,1746893433425,-400.0,8.219e-05,2]
[360569879,1746893433436,-400.0,8.219e-05,2]
[360569880,1746893433446,-400.0,8.219e-05,2]
[360569881,1746893433455,-400.0,8.219e-05,2]
[360569882,1746893433465,-400.0,8.219e-05,2]
[360569883,1746893433475,-1452.58,8.219e-05,2]
[360569884,1746893433485,-400.0,8.219e-05,2]
[360569885,1746893433495,-400.0,8.219e-05,2]
[360569886,1746893433505,-400.0,8.219e-05,2]
[360569887,1746893433515,-414.14,8.219e-05,2]
[360569888,1746893433524,-400.0,8.219e-05,2]
[360569889,1746893433534,-400.0,8.219e-05,2]
[360569890,1746893433544,-400.0,8.219e-05,2]
[360569891,1746893433553,-400.0,8.219e-05,2]
[360569892,1746893433564,-400.0,8.219e-05,2]
[360569893,1746893433573,-402.00725954,8.219e-05,2]
[360569894,1746893433582,-843.64,8.219e-05,2]
[360569895,1746893433592,-329.3345738,8.219e-05,2]
[360569896,1746893433601,-1414.49,8.219e-05,2]
[360569897,1746893433610,-400.0,8.219e-05,2]
[360569898,1746893433619,-400.0,8.219e-05,2]
[360569899,1746893433629,-1018.92,8.219e-05,2]
[360569900,1746893433639,-400.0,8.219e-05,2]
[360569901,1746893433648,-286.48072112,8.219e-05,2]
[360569902,1746893433657,-647.18,8.219e-05,2]
[360569903,1746893433667,-649.88,8.219e-05,2]
[360569904,1746893433676,-400.0,8.219e-05,2]
[360569905,1746893433686,-426.54,8.219e-05,2]
[360569906,1746893433696,-400.0,8.219e-05,2]
[360569907,1746893433705,-400.0,8.219e-05,2]
[360569908,1746893433715,-400.0,8.219e-05,2]
[360569909,1746893433724,-400.0,8.219e-05,2]
[360569910,1746893433734,-400.0,8.219e-05,2]
[360569911,1746893433743,-400.0,8.219e-05,2]
[360569912,1746893433753,-400.0,8.219e-05,2]
[360569913,1746893433763,-576.18,8.219e-05,2]
[360569914,1746893433772,-2036.07,8.219e-05,2]
[360569915,1746893433782,-417.38394561,8.219e-05,2]
[360569916,1746893433791,-745.53,8.219e-05,2]
[360569917,1746893433801,-400.0,8.219e-05,2]
[360569918,1746893433811,-905.35,8.219e-05,2]
[360569919,1746893433820,-400.0,8.219e-05,2]
[360569920,1746893433831,-2913.52,8.219e-05,2]
[360569921,1746893433841,-400.0,8.219e-05,2]
[360569922,1746893433851,-164.94226606,8.219e-05,2]
[360569923,1746893433860,-400.0,8.219e-05,2]
[360569924,1746893433871,-808.96,8.219e-05,2]
[360569925,1746893433881,-400.0,8.219e-05,2]
[360569926,1746893433891,-400.0,8.219e-05,2]
[360569927,1746893433901,-400.0,8.219e-05,2]
[360569928,1746893433911,-267.8176415,8.219e-05,2]
[360569929,1746893433921,-630.07,8.219e-05,2]
[360569931,1746893433931,-400.0,8.219e-05,2]
[360569933,1746893433940,-400.0,8.219e-05,2]
[360569935,1746893433950,-400.0,8.219e-05,2]
[360569937,1746893433960,-400.0,8.219e-05,2]
[360569938,1746893433969,-400.0,8.219e-05,2]
[360569939,1746893433979,-400.0,8.219e-05,2]
[360569940,1746893433989,-400.0,8.219e-05,2]
[360569941,1746893433998,-400.0,8.219e-05,2]
[360569942,1746893434008,-400.0,8.219e-05,2]
[360569943,1746893434017,-400.0,8.219e-05,2]
[360569944,1746893434027,-1365.14,8.219e-05,2]
[360569945,1746893434036,-400.0,8.219e-05,2]
[360569946,1746893434045,-400.0,8.219e-05,2]
[360569947,1746893434055,-400.0,8.219e-05,2]
[360569948,1746893434064,-400.0,8.219e-05,2]
[360569949,1746893434073,-400.0,8.219e-05,2]
[360569950,1746893434083,-400.0,8.219e-05,2]
[360569951,1746893434092,-448.68,8.219e-05,2]
[360569952,1746893434102,-400.0,8.219e-05,2]
[360569953,1746893434112,-400.0,8.219e-05,2]
[360569954,1746893434122,-428.07962881,8.219e-05,2]
[360569955,1746893434131,-1846.77,8.219e-05,2]
[360569956,1746893434140,-400.0,8.219e-05,2]
[360569957,1746893434150,-400.0,8.219e-05,2]
[360569958,1746893434159,-400.0,8.219e-05,2]
[360569959,1746893434169,-1968.9,8.219e-05,2]
[360569960,1746893434178,-400.0,8.219e-05,2]
[360569961,1746893434187,-909.06,8.219e-05,2]
[360569962,1746893434197,-400.0,8.219e-05,2]
[360569963,1746893434207,-400.0,8.219e-05,2]
[360569964,1746893434217,-400.0,8.219e-05,2]
[360569965,1746893434227,-400.0,8.219e-05,2]
[360569966,1746893434236,-400.0,8.219e-05,2]
[360569967,1746893434245,-400.0,8.219e-05,2]
[360569968,1746893434256,-1074.14,8.219e-05,2]
[360569969,1746893434266,-400.0,8.219e-05,2]
[360569970,1746893434275,-400.0,8.219e-05,2]
[360569971,1746893434286,-940.19,8.219e-05,2]
[360569972,1746893434296,-400.0,8.219e-05,2]
[360569973,1746893434305,-1315.71,8.219e-05,2]
[360569974,1746893434315,-942.48,8.219e-05,2]
[360569975,1746893434325,-400.0,8.219e-05,2]
[360569976,1746893434334,-400.0,8.219e-05,2]
[360569977,1746893434343,-400.0,8.219e-05,2]
[360569978,1746893434353,-400.0,8.219e-05,2]
[360569979,1746893434362,-401.97962486,8.219e-05,2]
[360569980,1746893434372,-500.0,8.219e-05,2]
[360569981,1746893434382,-400.0,8.219e-05,2]
[360569982,1746893434391,-400.0,8.219e-05,2]
[360569983,1746893434400,-783.5,8.219e-05,2]
[360569984,1746893434410,-557.44,8.219e-05,2]
[360569985,1746893434422,-1217.51,8.219e-05,2]
[360569986,1746893434432,-2080.14,8.219e-05,2]
[360569987,1746893434441,-400.0,8.219e-05,2]
[360569988,1746893434450,-400.0,8.219e-05,2]
[360569989,1746893434461,-400.0,8.219e-05,2]
[360569990,1746893434471,-400.0,8.219e-05,2]
[360569991,1746893434480,-400.0,8.219e-05,2]
[360569992,1746893434492,-597.12,8.219e-05,2]
[360569993,1746893434501,-400.0,8.219e-05,2]
[360569994,1746893434511,-400.0,8.219e-05,2]
[360569995,1746893434520,-1956.94,8.219e-05,2]
[360569996,1746893434530,-434.24,8.219e-05,2]
[360569997,1746893434540,-400.0,8.219e-05,2]
[360569998,1746893434550,-440.58184799,8.219e-05,2]
[360569999,1746893434559,-400.0,8.219e-05,2]
[360570000,1746893434568,-424.91392259,8.219e-05,2]
[360570001,1746893434578,-400.0,8.219e-05,2]
[360570002,1746893434588,-723.66,8.219e-05,2]
[360570003,1746893434598,-400.0,8.219e-05,2]
[360570004,1746893434610,-705.71,8.219e-05,2]
[360570005,1746893434619,-400.0,8.219e-05,2]
[360570006,1746893434629,-400.0,8.219e-05,2]
[360570007,1746893434638,-1027.1,8.219e-05,2]
[360570008,1746893434647,-400.0,8.219e-05,2]
[360570009,1746893434657,-400.0,8.219e-05,2]
[360570010,1746893434666,-400.0,8.219e-05,2]
[360570011,1746893434676,-1118.49,8.219e-05,2]
[360570012,1746893434685,-540.54,8.219e-05,2]
[360570013,1746893434695,-400.0,8.219e-05,2]
[360570014,1746893434704,-400.0,8.219e-05,2]
[360570015,1746893434714,-400.0,8.219e-05,2]
[360570016,1746893434723,-400.0,8.219e-05,2]
[360570017,1746893434732,-400.0,8.219e-05,2]
[360570018,1746893434743,-1068.85,8.219e-05,2]
[360570019,1746893434753,-400.0,8.219e-05,2]
[360570020,1746893434762,-400.0,8.219e-05,2]
[360570021,1746893434773,-591.73,8.219e-05,2]
[360570022,1746893434782,-1430.32,8.219e-05,2]
[360570023,1746893434792,-400.0,8.219e-05,2]
[360570024,1746893434802,-583.59,8.219e-05,2]
[360570025,1746893434812,-400.0,8.219e-05,2]
[360570026,1746893434822,-400.0,8.219e-05,2]
[360570027,1746893434831,-400.0,8.219e-05,2]
[360570028,1746893434841,-400.0,8.219e-05,2]
[360570029,1746893434851,-1075.28,8.219e-05,2]
[360570030,1746893434860,-400.0,8.219e-05,2]
[360570031,1746893434869,-571.53,8.219e-05,2]
[360570032,1746893434879,-403.28,8.219e-05,2]
[360570033,1746893434888,-400.0,8.219e-05,2]
[360570034,1746893434898,-628.15,8.219e-05,2]
[360570035,1746893434908,-400.0,8.219e-05,2]
[360570036,1746893434920,-509.09113005,8.219e-05,2]
[360570037,1746893434931,-400.0,8.219e-05,2]
[360570038,1746893434940,-400.0,8.219e-05,2]
[360570039,1746893434950,-1039.12,8.219e-05,2]
[360570040,1746893434959,-400.0,8.219e-05,2]
[360570041,1746893434968,-754.87,8.219e-05,2]
[360570042,1746893434978,-400.0,8.219e-05,2]
[360570043,1746893434987,-400.0,8.219e-05,2]
[360570044,1746893434997,-500.52,8.219e-05,2]
[360570045,1746893435007,-400.0,8.219e-05,2]
[360570046,1746893435016,-526.97,8.219e-05,2]
[360570047,1746893435026,-400.0,8.219e-05,2]
[360570048,1746893435220,-400.0,8.219e-05,2]
[360570049,1746893435232,-872.85,8.219e-05,2]
[360570050,1746893435241,-400.0,8.219e-05,2]
[360570051,1746893435251,-741.81,8.219e-05,2]
[360570052,1746893435260,-1028.28,8.219e-05,2]
[360570053,1746893435270,-531.8,8.219e-05,2]
[360570054,1746893435280,-436.65,8.219e-05,2]
[360570055,1746893435289,-616.06,8.219e-05,2]
[360570056,1746893435299,-400.0,8.219e-05,2]
[360570057,1746893435310,-400.0,8.219e-05,2]
[360570058,1746893435319,-413.76027428,8.219e-05,2]
[360570059,1746893435328,-594.41,8.219e-05,2]
[360570060,1746893435337,-400.0,8.219e-05,2]
[360570061,1746893435346,-400.0,8.219e-05,2]
[360570062,1746893435356,-400.0,8.219e-05,2]
[360570063,1746893435365,-400.0,8.219e-05,2]
[360570064,1746893435374,-400.0,8.219e-05,2]
[360570065,1746893435385,-400.0,8.219e-05,2]
[360570066,1746893435394,-400.0,8.219e-05,2]
[360570067,1746893435405,-499.08,8.219e-05,2]
[360570068,1746893435420,-400.0,8.219e-05,2]
[360570069,1746893435429,-400.0,8.219e-05,2]
[360570070,1746893435439,-448.27,8.219e-05,2]
[360570071,1746893435448,-400.0,8.219e-05,2]
[360570072,1746893435458,-468.37,8.219e-05,2]
[360570073,1746893435468,-719.98,8.219e-05,2]
[360570074,1746893435478,-400.0,8.219e-05,2]
[360570075,1746893435488,-400.0,8.219e-05,2]
[360570076,1746893435499,-1473.84,8.219e-05,2]
[360570077,1746893435508,-400.0,8.219e-05,2]
[360570078,1746893435518,-400.0,8.219e-05,2]
[360570079,1746893435527,-679.43,8.219e-05,2]
[360570080,1746893435537,-400.0,8.219e-05,2]
[360570081,1746893435546,-400.0,8.219e-05,2]
[360570082,1746893435556,-400.0,8.219e-05,2]
[360570083,1746893435567,-1391.56,8.219e-05,2]
[360570084,1746893435576,-400.0,8.219e-05,2]
[360570085,1746893435586,-400.0,8.219e-05,2]
[360570086,1746893435597,-400.0,8.219e-05,2]
[360570087,1746893435607,-400.0,8.219e-05,2]
[360570088,1746893435616,-1011.59,8.219e-05,2]
[360570089,1746893435626,-627.83,8.219e-05,2]
[360570090,1746893435635,-400.0,8.219e-05,2]
[360570091,1746893435644,-400.0,8.219e-05,2]
[360570092,1746893435654,-383.8851986,8.219e-05,2]
[360570093,1746893435664,-2701.32,8.219e-05,2]
[360570094,1746893435674,-400.0,8.219e-05,2]
[360570095,1746893435683,-3041.6,8.219e-05,2]
[360570096,1746893435693,-1611.64,8.219e-05,2]
[360570097,1746893435703,-474.31,8.219e-05,2]
[360570098,1746893435713,-1247.15,8.219e-05,2]
[360570099,1746893435722,-3052.4,8.219e-05,2]
[360570100,1746893435732,-413.31964628,8.219e-05,2]
[360570101,1746893435742,-400.0,8.219e-05,2]
[360570102,1746893435751,-400.0,8.219e-05,2]
[360570103,1746893435760,-400.0,8.219e-05,2]
[360570104,1746893435770,-400.0,8.219e-05,2]
[360570105,1746893435780,-400.0,8.219e-05,2]
[360570106,1746893435789,-400.0,8.219e-05,2]
[360570107,1746893435799,-3691.93,8.219e-05,2]
[360570108,1746893435809,-400.0,8.219e-05,2]
[360570109,1746893435818,-1190.11,8.219e-05,2]
[360570110,1746893435828,-400.0,8.219e-05,2]
[360570111,1746893435837,-607.11,8.219e-05,2]
[360570112,1746893435847,-1598.85,8.219e-05,2]
[360570113,1746893435857,-593.61,8.219e-05,2]
[360570114,1746893435866,-1178.92,8.219e-05,2]
[360570115,1746893435875,-400.0,8.219e-05,2]
[360570116,1746893435884,-173.25406248,8.219e-05,2]
[360570117,1746893435893,-400.0,8.219e-05,2]
[360570118,1746893435902,-400.0,8.219e-05,2]
[360570119,1746893435912,-419.27,8.219e-05,2]
[360570120,1746893435922,-400.0,8.219e-05,2]
[360570121,1746893435931,-1087.14,8.219e-05,2]
[360570122,1746893435941,-734.48,8.219e-05,2]
[360570123,1746893435950,-1008.29,8.219e-05,2]
[360570124,1746893435960,-400.0,8.219e-05,2]
[360570125,1746893435969,-400.0,8.219e-05,2]
[360570126,1746893435979,-457.17,8.219e-05,2]
[360570127,1746893435988,-400.0,8.219e-05,2]
[360570128,1746893435997,-3247.85,8.219e-05,2]
[360570129,1746893436007,-400.0,8.219e-05,2]
[360570130,1746893436016,-1612.83,8.219e-05,2]
[360570131,1746893436025,-504.39,8.219e-05,2]
[360570132,1746893436035,-2137.56,8.219e-05,2]
[360570133,1746893436045,-400.0,8.219e-05,2]
[360570134,1746893436054,-400.0,8.219e-05,2]
[360570135,1746893436066,-1508.31,8.219e-05,2]
[360570136,1746893436075,-400.0,8.219e-05,2]
[360570137,1746893436084,-400.0,8.219e-05,2]
[360570138,1746893436093,-400.0,8.219e-05,2]
[360570139,1746893436103,-431.71,8.219e-05,2]
[360570140,1746893436112,-2672.09,8.219e-05,2]
[360570141,1746893436122,-400.0,8.219e-05,2]
[360570142,1746893436131,-400.0,8.219e-05,2]
[360570143,1746893436141,-400.0,8.219e-05,2]
[360570144,1746893436151,-2238.72,8.219e-05,2]
[360570145,1746893436160,-400.0,8.219e-05,2]
[360570146,1746893436170,-2420.71,8.219e-05,2]
[360570147,1746893436181,-3288.8,8.219e-05,2]
[360570148,1746893436190,-1080.6,8.219e-05,2]
[360570149,1746893436200,-400.0,8.219e-05,2]
[360570150,1746893436210,-558.81,8.219e-05,2]
[360570151,1746893436220,-1030.66,8.219e-05,2]
[360570152,1746893436229,-400.0,8.219e-05,2]
[360570153,1746893436239,-1412.27,8.219e-05,2]
[360570154,1746893436250,-400.0,8.219e-05,2]
[360570155,1746893436260,-400.0,8.219e-05,2]
[360570156,1746893436269,-400.0,8.219e-05,2]
[360570157,1746893436279,-400.0,8.219e-05,2]
[360570158,1746893436288,-1019.88,8.219e-05,2]
[360570159,1746893436298,-400.0,8.219e-05,2]
[360570160,1746893436308,-1533.94,8.219e-05,2]
[360570161,1746893436319,-549.01,8.219e-05,2]
[360570162,1746893436329,-532.59,8.219e-05,2]
[360570163,1746893436339,-445.9,8.219e-05,2]
[360570164,1746893436349,-400.0,8.219e-05,2]
[360570165,1746893436359,-1642.12,8.219e-05,2]
[360570166,1746893436370,-151.0,8.219e-05,2]
[360570167,1746893436379,-400.0,8.219e-05,2]
[360570168,1746893436389,-400.0,8.219e-05,2]
[360570169,1746893436399,-400.0,8.219e-05,2]
[360570170,1746893436410,-438.21,8.219e-05,2]
[360570171,1746893436424,-400.0,8.219e-05,2]
[360570172,1746893436434,-2730.75,8.219e-05,2]
[360570173,1746893436444,-1332.47,8.219e-05,2]
[360570174,1746893436453,-400.0,8.219e-05,2]
[360570175,1746893436464,-449.27,8.219e-05,2]
[360570176,1746893436474,-400.0,8.219e-05,2]
[360570177,1746893436484,-591.57,8.219e-05,2]
[360570178,1746893436495,-400.0,8.219e-05,2]
[360570179,1746893436506,-2248.11,8.219e-05,2]
[360570180,1746893436515,-400.0,8.219e-05,2]
[360570181,1746893436524,-610.6,8.219e-05,2]
[360570182,1746893436534,-819.78,8.219e-05,2]
[360570183,1746893436544,-442.34,8.219e-05,2]
[360570184,1746893436554,-400.0,8.219e-05,2]
[360570185,1746893436563,-870.77,8.219e-05,2]
[360570186,1746893436574,-1611.26,8.219e-05,2]
[360570187,1746893436584,-609.95,8.219e-05,2]
[360570188,1746893436594,-374.95287208,8.219e-05,2]
[360570189,1746893436603,-400.0,8.219e-05,2]
[360570190,1746893436613,-400.0,8.219e-05,2]
[360570191,1746893436623,-3507.31,8.219e-05,2]
[360570192,1746893436632,-400.0,8.219e-05,2]
[360570193,1746893436641,-400.0,8.219e-05,2]
[360570194,1746893436651,-868.14,8.219e-05,2]
[360570195,1746893436660,-1714.66,8.219e-05,2]
[360570196,1746893436670,-400.0,8.219e-05,2]
[360570197,1746893436679,-2759.24,8.219e-05,2]
[360570198,1746893436689,-288.08238673,8.219e-05,2]
[360570199,1746893436699,-400.0,8.219e-05,2]
[360570200,1746893436708,-400.0,8.219e-05,2]
[360570201,1746893436718,-420.62,8.219e-05,2]
[360570202,1746893436727,-400.0,8.219e-05,2]
[360570203,1746893436737,-400.0,8.219e-05,2]
[360570204,1746893436746,-400.0,8.219e-05,2]
[360570205,1746893436755,-435.29153154,8.219e-05,2]
[360570206,1746893437046,-527.03470012,8.219e-05,2]
[360570229,1746893438555,-4379.48376834,8.219e-05,2]
[360570231,1746893438565,-400.0,8.219e-05,2]
[360570233,1746893438574,-400.0,8.219e-05,2]
[360570235,1746893438583,-400.0,8.219e-05,2]
[360570237,1746893438592,-400.0,8.219e-05,2]
[360570239,1746893438602,-1645.68,8.219e-05,2]
[360570241,1746893438611,-797.18,8.219e-05,2]
[360570243,1746893438621,-400.0,8.219e-05,2]
[360570245,1746893438630,-400.0,8.219e-05,2]
[360570247,1746893438639,-1032.70914928,8.219e-05,2]
[360570249,1746893438651,-639.83085072,8.219e-05,2]
[360570251,1746893438660,-400.0,8.219e-05,2]
[360570253,1746893438670,-559.84,8.219e-05,2]
[360570255,1746893438680,-1577.4,8.219e-05,2]
[360570257,1746893438689,-400.0,8.219e-05,2]
[360570259,1746893438698,-2032.93,8.219e-05,2]
[360570261,1746893438706,-400.0,8.219e-05,2]
[360570263,1746893438716,-1138.75,8.219e-05,2]
[360570265,1746893438726,-4669.71,8.219e-05,2]
[360570267,1746893438735,-947.95,8.219e-05,2]
[360570269,1746893438745,-400.0,8.219e-05,2]
[360570293,1746893438952,-400.0,8.219e-05,2]
[360570294,1746893438962,-434.22,8.219e-05,2]
[360570295,1746893438972,-400.0,8.219e-05,2]
[360570296,1746893438982,-400.0,8.219e-05,2]
[360570297,1746893438992,-400.0,8.219e-05,2]
[360570298,1746893439001,-400.0,8.219e-05,2]
[360570299,1746893439011,-1670.13,8.219e-05,2]
[360570300,1746893439020,-1116.67,8.219e-05,2]
[360570301,1746893439029,-400.0,8.219e-05,2]
[360570302,1746893439039,-400.0,8.219e-05,2]
[360570303,1746893439049,-400.0,8.219e-05,2]
[360570304,1746893439059,-400.0,8.219e-05,2]
[360570305,1746893439070,-1085.28,8.219e-05,2]
[360570306,1746893439084,-836.86,8.219e-05,2]
[360570307,1746893439094,-400.0,8.219e-05,2]
[360570308,1746893439103,-400.0,8.219e-05,2]
[360570309,1746893439113,-400.0,8.219e-05,2]
[360570310,1746893439123,-400.0,8.219e-05,2]
[360570311,1746893439133,-1312.65,8.219e-05,2]
[360570312,1746893439142,-653.53,8.219e-05,2]
[360570313,1746893439151,-2452.43,8.219e-05,2]
[360570314,1746893439160,-772.32,8.219e-05,2]
[360570315,1746893439170,-400.0,8.219e-05,2]
[360570316,1746893439179,-400.0,8.219e-05,2]
[360570317,1746893439188,-524.42436185,8.219e-05,2]
[360570318,1746893439198,-1015.9,8.219e-05,2]
[360570319,1746893439207,-400.0,8.219e-05,2]
[360570320,1746893439216,-1993.66,8.219e-05,2]
[360570321,1746893439225,-400.0,8.219e-05,2]
[360570322,1746893439234,-400.0,8.219e-05,2]
[360570323,1746893439244,-4694.46,8.219e-05,2]
[360570324,1746893439254,-5895.77,8.219e-05,2]
[360570325,1746893439263,-574.55,8.219e-05,2]
[360570326,1746893439272,-8538.19,8.219e-05,2]
[360570327,1746893439281,-400.0,8.219e-05,2]
[360570328,1746893439290,-2684.32,8.219e-05,2]
[360570329,1746893439299,-400.57941477,8.219e-05,2]
[360570330,1746893439308,-449.91,8.219e-05,2]
[360570331,1746893439322,-508.01,8.219e-05,2]
[360570332,1746893439337,-400.0,8.219e-05,2]
[360570333,1746893439346,-400.0,8.219e-05,2]
[360570334,1746893439357,-417.48,8.219e-05,2]
[360570335,1746893439366,-400.0,8.219e-05,2]
[360570336,1746893439375,-400.0,8.219e-05,2]
[360570337,1746893439384,-400.0,8.219e-05,2]
[360570338,1746893439393,-1146.98,8.219e-05,2]
[360570339,1746893439403,-400.0,8.219e-05,2]
[360570340,1746893439412,-629.6,8.219e-05,2]
[360570341,1746893439425,-1024.55,8.219e-05,2]
[360570342,1746893439435,-884.45,8.219e-05,2]
[360570343,1746893439444,-851.36,8.219e-05,2]
[360570344,1746893439454,-400.0,8.219e-05,2]
[360570345,1746893439465,-400.0,8.219e-05,2]
[360570346,1746893439474,-9731.35,8.219e-05,2]
[360570347,1746893439484,-427.55,8.219e-05,2]
[360570348,1746893439494,-210.50113663,8.219e-05,2]
[360570349,1746893439503,-365.45278829,8.219e-05,2]
[360570350,1746893439513,-400.0,8.219e-05,2]
[360570351,1746893439523,-823.51,8.219e-05,2]
[360570352,1746893439532,-400.0,8.219e-05,2]
[360570353,1746893439542,-848.21,8.219e-05,2]
[360570354,1746893439551,-400.0,8.219e-05,2]
[360570355,1746893439560,-600.16026788,8.219e-05,2]
[360570657,1746893443805,-5048.10112149,8.219e-05,2]
[360570932,1746893446610,-2864.83861063,8.219e-05,2]